bitfinex/quotes_BTCUSD_20220105
["timestamp","ask_amount","ask_price","bid_price","bid_amount"]
[1641420614596,0.0458,43701.0,43695.0,0.63915961]
[1641420614898,0.0458,43701.0,43691.0,0.02132]
[1641420615096,0.0408,43701.0,43691.0,0.02132]
[1641420615696,0.057233,43697.0,43691.0,0.02132]
[1641420616298,0.27380391,43696.0,43691.0,0.02132]
[1641420616497,0.00123915,43692.0,43691.0,0.02132]
[1641420616696,0.04703915,43692.0,43691.0,0.02132]
[1641420616996,0.41629715,43692.0,43691.0,0.02132]
[1641420617802,0.41610015,43692.0,43691.0,0.02132]
[1641420618000,0.41584023,43692.0,43691.0,0.02132]
[1641420619652,0.62037035,43692.0,43691.0,0.02132]
[1641420619853,0.62037035,43692.0,43680.0,1.50416298]
[1641420619854,0.057249,43690.0,43680.0,1.50416298]
[1641420620055,0.05725,43684.0,43679.0,0.42]
[1641420620254,0.05725,43684.0,43681.0,0.2]
[1641420620461,0.0458,43686.0,43681.0,0.4820176]
[1641420620653,0.0458,43686.0,43682.0,0.569258]
[1641420621055,0.0458,43686.0,43682.0,0.2]
[1641420621255,0.0458,43686.0,43681.0,0.4820176]
[1641420621456,0.05724799,43685.0,43681.0,0.2820176]
[1641420621657,0.05724799,43685.0,43682.0,0.005]
[1641420622499,0.2032081,43685.0,43682.0,0.005]
[1641420622700,0.2032081,43685.0,43671.0,0.00137217]
[1641420622701,0.00122114,43683.0,43671.0,0.00137217]
[1641420622902,0.00127646,43672.0,43671.0,0.00137217]
[1641420623104,1.23707646,43672.0,43671.0,0.00137217]
[1641420623298,2.81221395,43672.0,43671.0,0.00137217]
[1641420623499,3.29760908,43672.0,43671.0,0.00137217]
[1641420623698,3.44840508,43672.0,43671.0,0.00137217]
[1641420623901,1.46,43671.0,43662.0,0.01369727]
[1641420624102,1.46,43671.0,43652.0,0.4378]
[1641420624103,1.7,43669.0,43652.0,0.4378]
[1641420624299,0.171877,43667.0,43652.0,0.4378]
[1641420624499,0.057096,43662.0,43647.0,0.00022]
[1641420624699,0.057295,43660.0,43649.0,0.2]
[1641420624898,0.057295,43660.0,43650.0,0.53768536]
[1641420624899,0.1145742,43658.0,43650.0,0.53768536]
[1641420625098,0.0458,43657.0,43648.0,0.47966896]
[1641420625298,0.04706503,43657.0,43648.0,0.47966896]
[1641420625497,0.419258,43656.0,43648.0,0.47966896]
[1641420625704,0.057293,43652.0,43648.0,0.47966896]
[1641420625949,0.057293,43652.0,43648.0,0.47466896]
[1641420625950,0.0572937,43651.0,43648.0,0.47466896]
[1641420626151,0.1070967,43651.0,43648.0,0.47466896]
[1641420626554,0.1070967,43651.0,43647.0,0.00022]
[1641420626755,2.12050752,43648.0,43647.0,0.00022]
[1641420626952,2.25180752,43648.0,43647.0,0.00022]
[1641420627152,2.40180752,43648.0,43647.0,0.00022]
[1641420627351,2.85180752,43648.0,43647.0,0.00011]
[1641420627550,2.90650919,43648.0,43647.0,0.00011]
[1641420627753,2.91950919,43648.0,43647.0,0.00011]
[1641420627951,2.91950919,43648.0,43645.0,0.00033]
[1641420627952,0.887317,43647.0,43645.0,0.00033]
[1641420628151,0.414861,43646.0,43645.0,0.00033]
[1641420628454,1.014861,43646.0,43645.0,0.00033]
[1641420628650,0.514861,43646.0,43645.0,0.00033]
[1641420629451,0.7290564,43646.0,43645.0,0.00033]
[1641420629699,0.528861,43646.0,43645.0,0.00022]
[1641420630296,1.46631814,43646.0,43645.0,0.00022]
[1641420630497,0.63631814,43646.0,43645.0,0.00022]
[1641420630798,0.428861,43646.0,43645.0,0.00022]
[1641420631002,0.414861,43646.0,43645.0,0.00022]
[1641420631195,1.564861,43646.0,43645.0,0.00022]
[1641420631598,0.426861,43646.0,43645.0,0.00022]
[1641420631802,0.012,43646.0,43645.0,0.3137095]
[1641420632000,0.012,43646.0,43645.0,1.04050652]
[1641420632203,0.012,43646.0,43645.0,3.24050652]
[1641420632400,0.012,43646.0,43645.0,3.24063454]
[1641420632599,0.012,43646.0,43645.0,3.77585979]
[1641420632800,0.00129317,43665.0,43647.0,0.2]
[1641420633002,0.04709317,43665.0,43653.0,0.00129446]
[1641420633200,0.04709317,43665.0,43655.0,0.2]
[1641420633457,0.0458,43665.0,43655.0,0.2]
[1641420633662,0.0768,43665.0,43655.0,0.2]
[1641420633858,0.0768,43665.0,43658.0,1.20173122]
[1641420634058,0.0768,43665.0,43659.0,0.35057741]
[1641420634255,0.0768,43665.0,43659.0,0.55057741]
[1641420634456,0.0768,43665.0,43658.0,1.00173122]
[1641420634957,0.0768,43665.0,43659.0,0.40826269]
[1641420634958,0.0458,43665.0,43659.0,0.40826269]
[1641420635161,0.0458,43665.0,43658.0,1.00173122]
[1641420635162,0.0458,43665.0,43661.0,0.2]
[1641420635457,0.00122389,43672.0,43662.0,0.121476]
[1641420635458,0.0458,43671.0,43662.0,0.121476]
[1641420635659,0.013,43665.0,43661.0,0.002]
[1641420636057,0.013,43665.0,43662.0,0.369577]
[1641420636259,0.013,43665.0,43661.0,0.002]
[1641420636457,0.013,43665.0,43662.0,0.369377]
[1641420636659,0.243,43665.0,43661.0,0.002]
[1641420636859,0.369532,43664.0,43651.0,0.20701883]
[1641420637096,0.23,43665.0,43653.0,0.2]
[1641420637297,0.48528292,43663.0,43655.0,0.2]
[1641420637695,0.23123327,43665.0,43656.0,0.33133723]
[1641420638096,0.23123327,43665.0,43657.0,0.2]
[1641420638496,0.23123327,43665.0,43657.0,0.56478143]
[1641420638696,0.23123327,43665.0,43658.0,0.569532]
[1641420639002,0.23123327,43665.0,43658.0,0.83570246]
[1641420639198,0.23123327,43665.0,43659.0,0.369532]
[1641420639397,0.23123327,43665.0,43658.0,0.2]
[1641420639799,0.23123327,43665.0,43655.0,0.2]
[1641420640203,0.0458,43664.0,43647.0,0.20793009]
[1641420640401,0.64938718,43659.0,43647.0,0.00122423]
[1641420640855,0.0458,43658.0,43651.0,0.3395609]
[1641420641349,0.0458,43658.0,43652.0,0.2]
[1641420641556,0.0458,43658.0,43654.0,0.2]
[1641420641748,0.0458,43658.0,43656.0,0.2]
[1641420641950,0.0458,43658.0,43657.0,0.321393]
[1641420642149,0.0458,43658.0,43657.0,0.9]
[1641420642348,0.0458,43658.0,43657.0,1.269532]
[1641420642549,0.0458,43658.0,43657.0,0.569532]
[1641420642748,0.04703378,43658.0,43657.0,0.2]
[1641420643149,0.51703378,43658.0,43657.0,0.2001166]
[1641420643750,0.04703378,43658.0,43657.0,0.2001166]
[1641420643950,0.04703378,43658.0,43657.0,0.0001166]
[1641420644154,0.04203378,43658.0,43657.0,0.0001166]
[1641420645302,0.09931978,43658.0,43657.0,0.0001166]
[1641420645503,0.51885178,43658.0,43657.0,0.0001166]
[1641420646807,0.46885178,43658.0,43657.0,0.0001166]
[1641420648104,1.11007195,43658.0,43657.0,0.0001166]
[1641420648353,0.47007195,43658.0,43657.0,0.0001166]
[1641420650951,1.14007195,43658.0,43657.0,0.0001166]
[1641420651152,0.47007195,43658.0,43657.0,0.0001166]
[1641420651356,0.8270097,43658.0,43657.0,0.0001166]
[1641420651552,0.47007195,43658.0,43657.0,0.0001166]
[1641420652418,0.6714941,43658.0,43657.0,0.0001166]
[1641420652615,0.82273901,43658.0,43657.0,0.0001166]
[1641420652816,2.2,43657.0,43644.0,0.00044]
[1641420653016,0.00120952,43647.0,43644.0,0.00044]
[1641420653215,2.48763116,43647.0,43644.0,0.00044]
[1641420653414,2.87324236,43647.0,43644.0,0.00044]
[1641420653616,5.63698575,43647.0,43644.0,0.00044]
[1641420653818,5.83198575,43647.0,43644.0,0.00044]
[1641420654215,5.8902204,43647.0,43646.0,0.00661649]
[1641420655858,3.24951956,43647.0,43646.0,0.00661649]
[1641420656056,3.24951956,43647.0,43646.0,2.20661649]
[1641420656057,0.38267714,43647.0,43646.0,2.20661649]
[1641420656257,0.01314514,43647.0,43646.0,2.77614849]
[1641420656454,0.01314514,43647.0,43646.0,2.77737305]
[1641420656655,0.01314514,43647.0,43646.0,2.63146695]
[1641420657057,0.00214514,43647.0,43646.0,2.83146695]
[1641420657757,0.26214514,43647.0,43646.0,2.83346695]
[1641420658358,0.26214514,43647.0,43646.0,2.93346695]
[1641420658556,0.26214514,43647.0,43646.0,3.03346695]
[1641420658756,0.26214514,43647.0,43646.0,2.83346695]
[1641420658958,0.23214514,43647.0,43646.0,2.83146695]
[1641420659804,0.23214514,43647.0,43646.0,2.84446695]
[1641420660202,0.23214514,43647.0,43646.0,2.99446695]
[1641420660401,0.23214514,43647.0,43646.0,3.04446695]
[1641420660702,0.23214514,43647.0,43646.0,2.89446695]
[1641420660902,0.23214514,43647.0,43646.0,2.98146695]
[1641420661200,0.23214514,43647.0,43646.0,2.83146695]
[1641420661402,0.23214514,43647.0,43646.0,2.88146695]
[1641420661601,0.23092514,43647.0,43646.0,2.98146695]
[1641420661805,0.23092514,43647.0,43646.0,2.99546695]
[1641420662003,0.23092514,43647.0,43646.0,3.09546695]
[1641420662702,0.23092514,43647.0,43646.0,2.99546695]
[1641420662904,0.01375222,43660.0,43646.0,2.99546695]
[1641420662905,0.01375222,43660.0,43655.0,0.2]
[1641420663105,0.01375222,43660.0,43654.0,0.56211711]
[1641420663106,0.01375222,43660.0,43657.0,0.2]
[1641420663754,0.01375222,43660.0,43657.0,0.201]
[1641420664157,0.01375222,43660.0,43657.0,0.001]
[1641420664357,0.057288,43659.0,43657.0,0.001]
[1641420664556,1.75081968,43658.0,43657.0,0.001]
[1641420664960,2.2823857,43658.0,43646.0,0.0065]
[1641420665161,0.057295,43653.0,43648.0,0.2]
[1641420666157,0.11458812,43653.0,43648.0,0.2]
[1641420666956,0.171884,43655.0,43651.0,0.2]
[1641420666957,0.057289,43655.0,43651.0,0.2]
[1641420667429,0.057289,43655.0,43648.0,0.2]
[1641420667832,0.114583,43655.0,43648.0,0.2]
[1641420668029,0.52305592,43654.0,43646.0,0.0065]
[1641420668230,0.057295,43650.0,43646.0,0.0065]
[1641420668429,0.0572962,43649.0,43646.0,0.0065]
[1641420668831,0.0572962,43649.0,43647.0,0.00126139]
[1641420669031,0.369532,43648.0,43647.0,0.00126139]
[1641420669231,0.0572962,43649.0,43647.0,0.00126139]
[1641420669731,0.0573,43648.0,43647.0,0.00126139]
[1641420670131,0.426832,43648.0,43647.0,0.00126139]
[1641420671452,0.47390831,43648.0,43647.0,0.00126139]
[1641420671651,1.75,43647.0,43646.0,0.0065]
[1641420671851,2.54149314,43647.0,43646.0,0.0065]
[1641420672050,2.54149314,43647.0,43645.0,0.00022]
[1641420672051,1.35,43646.0,43645.0,0.00022]
[1641420672254,1.35,43646.0,43644.0,0.00044]
[1641420672255,1.75,43645.0,43644.0,0.00044]
[1641420672451,1.65,43644.0,43643.0,0.00022]
[1641420672654,2.019532,43644.0,43643.0,0.00022]
[1641420672851,1.089532,43644.0,43633.0,0.00033]
[1641420673054,0.9,43642.0,43633.0,0.00033]
[1641420673252,1.179532,43641.0,43640.0,0.00398218]
[1641420673452,1.179532,43641.0,43633.0,0.00033]
[1641420673453,1.92,43640.0,43633.0,0.00033]
[1641420673654,2.289532,43640.0,43633.0,0.00033]
[1641420674054,1.539532,43640.0,43633.0,0.00033]
[1641420674898,0.369532,43640.0,43633.0,0.00033]
[1641420675497,0.369532,43640.0,43639.0,0.00034318]
[1641420675706,1.235332,43640.0,43639.0,0.00034318]
[1641420676897,1.335332,43640.0,43639.0,0.00034318]
[1641420677197,1.235332,43640.0,43639.0,0.00034318]
[1641420677797,1.335432,43640.0,43639.0,0.00034318]
[1641420678199,1.565432,43640.0,43639.0,0.00034318]
[1641420678650,1.564432,43640.0,43639.0,0.00034318]
[1641420679048,1.564432,43640.0,43639.0,0.00023318]
[1641420679251,1.88135222,43640.0,43639.0,0.00023318]
[1641420679452,0.369532,43637.0,43635.0,0.00011]
[1641420679650,0.38111,43636.0,43635.0,0.00011]
[1641420679851,0.87689717,43636.0,43635.0,0.00011]
[1641420680049,1.24512306,43636.0,43635.0,0.00011]
[1641420680648,1.34512306,43636.0,43635.0,0.00011]
[1641420680850,1.39092306,43636.0,43635.0,0.00011]
[1641420681850,1.29092306,43636.0,43635.0,0.00011]
[1641420682401,1.29715549,43636.0,43635.0,0.00011]
[1641420682600,1.39715549,43636.0,43635.0,0.00011]
[1641420682999,1.39213122,43636.0,43635.0,0.00011]
[1641420683199,1.39956024,43636.0,43635.0,0.00011]
[1641420683405,2.40856605,43635.0,43634.0,0.00011]
[1641420683606,2.92395805,43635.0,43634.0,0.00011]
[1641420683803,0.69395805,43635.0,43634.0,0.00011]
[1641420684401,0.99517888,43635.0,43634.0,0.00011]
[1641420684602,3.04517888,43635.0,43634.0,0.00011]
[1641420684905,2.19659653,43628.0,43627.0,6.53e-06]
[1641420685105,1.939605,43627.0,43625.0,0.00022]
[1641420685303,0.415405,43626.0,43625.0,0.00022]
[1641420685504,0.507125,43626.0,43625.0,0.00022]
[1641420685704,0.507125,43626.0,43621.0,0.00022]
[1641420685705,1.35814671,43624.0,43622.0,0.00022]
[1641420685961,1.35814671,43624.0,43621.0,0.00022]
[1641420685962,0.369605,43620.0,43605.0,0.00033]
[1641420686170,1.206,43615.0,43612.0,0.00022]
[1641420686362,0.369605,43613.0,43612.0,0.00022]
[1641420686560,0.369604,43609.0,43603.0,0.00044]
[1641420686762,0.369605,43605.0,43593.0,0.43824]
[1641420686960,0.369605,43605.0,43594.0,7.188e-05]
[1641420686961,0.93475381,43600.0,43594.0,7.188e-05]
[1641420687163,0.057378,43598.0,43594.0,7.188e-05]
[1641420687362,2.049605,43595.0,43594.0,7.188e-05]
[1641420687560,2.05083663,43595.0,43594.0,7.188e-05]
[1641420687759,2.17671663,43595.0,43594.0,7.188e-05]
[1641420687965,2.33409541,43595.0,43592.0,0.00022]
[1641420688160,0.057384,43592.0,43588.0,0.12760188]
[1641420688360,0.00127097,43589.0,43588.0,0.12760188]
[1641420688763,0.11476409,43591.0,43588.0,0.12760188]
[1641420688962,0.01738205,43590.0,43589.0,0.2]
[1641420689265,0.00125323,43607.0,43594.0,0.00120189]
[1641420689463,0.0458,43608.0,43602.0,0.2]
[1641420689910,0.0458,43608.0,43604.0,0.2]
[1641420689911,0.031,43607.0,43604.0,0.2]
[1641420690117,0.031,43607.0,43606.0,0.2]
[1641420690516,0.031,43607.0,43601.0,0.40021484]
[1641420690712,0.031,43607.0,43602.0,0.2]
[1641420691114,0.00122164,43608.0,43602.0,0.2]
[1641420691713,0.00122164,43608.0,43601.0,0.00125319]
[1641420691914,0.06222164,43608.0,43599.0,0.2]
[1641420692815,0.06222164,43608.0,43601.0,0.20121426]
[1641420693016,0.06222164,43608.0,43604.0,0.2]
[1641420693017,0.00122164,43608.0,43604.0,0.2]
[1641420693214,0.00122164,43608.0,43602.0,0.2]
[1641420693457,0.00122164,43608.0,43607.0,0.52798795]
[1641420694454,0.00122164,43608.0,43607.0,0.2]
[1641420695058,0.00122164,43608.0,43602.0,0.01]
[1641420695355,0.00122164,43608.0,43600.0,0.21356071]
[1641420695556,0.00122164,43608.0,43601.0,0.33472477]
[1641420695758,0.54632134,43608.0,43601.0,0.33472477]
[1641420695956,0.54632134,43608.0,43600.0,0.21756071]
[1641420696360,0.00122164,43608.0,43600.0,0.204]
[1641420696557,0.00122164,43608.0,43602.0,0.00014543]
[1641420696756,0.05857964,43608.0,43600.0,0.19914543]
[1641420696957,0.10567962,43608.0,43600.0,0.004]
[1641420697211,0.30470093,43608.0,43596.0,0.00013841]
[1641420697410,0.00120423,43603.0,43596.0,0.00013841]
[1641420697609,0.0458,43602.0,43596.0,0.00013841]
[1641420697809,0.114746,43599.0,43596.0,0.00013841]
[1641420698012,0.369605,43598.0,43596.0,0.00013841]
[1641420698209,0.0458,43599.0,43596.0,0.00013841]
[1641420698811,0.103169,43599.0,43596.0,0.00013841]
[1641420699016,0.426982,43598.0,43596.0,0.00013841]
[1641420699412,1.3,43597.0,43596.0,0.00013841]
[1641420699612,1.694205,43597.0,43596.0,0.00013841]
[1641420700414,1.694205,43597.0,43589.0,0.2]
[1641420700415,2.134205,43597.0,43589.0,0.2]
[1641420700611,0.057374,43595.0,43588.0,0.12894825]
[1641420701061,0.35537848,43596.0,43588.0,0.12894825]
[1641420701259,0.0458,43595.0,43589.0,0.2]
[1641420701460,0.0458,43595.0,43588.0,0.12771188]
[1641420701664,0.057379,43591.0,43588.0,0.12771188]
[1641420702061,0.65373247,43590.0,43588.0,0.12771188]
[1641420702462,2.56087468,43589.0,43588.0,0.12771188]
[1641420702660,2.65667468,43589.0,43588.0,0.12771188]
[1641420702960,2.09,43588.0,43587.0,0.00058051]
[1641420703161,2.505405,43588.0,43587.0,0.00058051]
[1641420703364,2.52970501,43588.0,43587.0,0.00058051]
[1641420703562,2.62970501,43588.0,43587.0,0.00058051]
[1641420704062,2.63970501,43588.0,43587.0,0.00058051]
[1641420704266,2.63970501,43588.0,43587.0,0.00033051]
[1641420704463,0.369605,43585.0,43575.0,0.00044]
[1641420704705,0.369605,43582.0,43581.0,0.00022]
[1641420704906,2.60670312,43582.0,43580.0,0.00033]
[1641420705202,2.60670312,43582.0,43578.0,0.00033]
[1641420705204,2.559605,43580.0,43578.0,0.00033]
[1641420705403,2.005405,43579.0,43578.0,0.00033]
[1641420705807,2.005405,43579.0,43560.0,0.2]
[1641420706009,2.005405,43579.0,43539.0,0.43813]
[1641420706010,5.33248783,43555.0,43554.0,1.60873]
[1641420706204,5.33248783,43555.0,43554.0,0.5514]
[1641420706505,5.33248783,43555.0,43553.0,0.94973]
[1641420706506,5.33248783,43555.0,43553.0,0.00033]
[1641420707103,5.33248783,43555.0,43554.0,0.00018055]
[1641420707303,5.70209283,43555.0,43554.0,0.00018055]
[1641420707511,5.70189583,43555.0,43554.0,0.00018055]
[1641420707903,6.10711702,43555.0,43554.0,0.00018055]
[1641420708104,6.33711702,43555.0,43554.0,0.00018055]
[1641420708367,6.38291702,43555.0,43554.0,5.5e-07]
[1641420708560,6.43291702,43555.0,43553.0,0.00022055]
[1641420708765,6.43291702,43555.0,43541.0,0.00168681]
[1641420708766,1.88,43540.0,43539.0,0.28156399]
[1641420708966,2.734114,43540.0,43539.0,0.28134399]
[1641420709360,2.424114,43540.0,43539.0,0.28101399]
[1641420709563,2.734114,43540.0,43539.0,0.00022]
[1641420709759,2.524114,43540.0,43539.0,0.00022]
[1641420709964,2.435114,43540.0,43539.0,0.00022]
[1641420710366,0.555114,43540.0,43539.0,1.86022]
[1641420710564,0.11525,43540.0,43539.0,0.5378627]
[1641420710768,0.06945,43540.0,43539.0,0.5378627]
[1641420710984,0.06945,43540.0,43539.0,0.9074677]
[1641420711163,0.05845,43540.0,43539.0,0.9074677]
[1641420711378,0.05845,43540.0,43539.0,1.34255241]
[1641420711563,0.05845,43540.0,43539.0,0.369825]
[1641420711763,0.05845,43540.0,43539.0,0.00022]
[1641420711964,0.05845,43540.0,43539.0,0.00222]
[1641420711965,0.11045,43540.0,43539.0,0.00222]
[1641420712406,1.16625,43540.0,43539.0,0.00222]
[1641420712607,1.535855,43540.0,43539.0,0.00222]
[1641420713207,1.535855,43540.0,43539.0,0.00022]
[1641420713208,1.533855,43540.0,43539.0,0.00022]
[1641420713406,1.483855,43540.0,43539.0,0.00022]
[1641420713710,0.508855,43540.0,43539.0,0.00022]
[1641420713909,0.537855,43540.0,43539.0,0.00022]
[1641420714114,0.537855,43540.0,43525.0,0.00138672]
[1641420714310,0.537855,43540.0,43518.0,0.1]
[1641420714311,0.05835,43538.0,43518.0,0.1]
[1641420714509,0.85,43539.0,43524.0,0.00125711]
[1641420714510,0.00125694,43528.0,43524.0,0.00125711]
[1641420714712,0.00125694,43528.0,43517.0,0.00011]
[1641420714713,0.05835,43536.0,43523.0,0.54712559]
[1641420714910,0.05835,43532.0,43517.0,0.00011]
[1641420715110,0.05835,43530.0,43523.0,0.33167029]
[1641420715312,0.10835,43530.0,43517.0,0.00011]
[1641420715511,0.05957393,43529.0,43517.0,0.00011]
[1641420715971,0.05957393,43529.0,43517.0,0.00711]
[1641420715972,0.0595919,43520.0,43517.0,0.00711]
[1641420716174,2.24835,43518.0,43517.0,0.00711]
[1641420716371,2.667955,43518.0,43517.0,0.00711]
[1641420716569,0.369605,43517.0,43511.0,0.00011]
[1641420716871,0.369605,43517.0,43500.0,0.544103]
[1641420716872,0.00123847,43513.0,43500.0,0.544103]
[1641420717072,0.00123847,43513.0,43495.0,0.00127356]
[1641420717073,2.24835,43511.0,43495.0,0.00127356]
[1641420717279,0.62752708,43496.0,43490.0,0.00116622]
[1641420717472,1.6203344,43495.0,43490.0,0.00126107]
[1641420717768,0.00120639,43486.0,43480.0,0.2]
[1641420717971,0.10404,43485.0,43484.0,0.00011]
[1641420718170,0.10404,43485.0,43482.0,0.0073341]
[1641420718171,0.10528778,43485.0,43482.0,0.0024441]
[1641420718375,0.10517778,43485.0,43482.0,0.00269181]
[1641420718575,0.10517778,43485.0,43483.0,0.4780387]
[1641420718774,0.10506778,43485.0,43482.0,0.00269181]
[1641420718973,0.00125174,43484.0,43482.0,0.00269181]
[1641420719170,0.10404,43483.0,43482.0,0.00269181]
[1641420719369,0.1651216,43494.0,43482.0,0.00269181]
[1641420719370,0.00120943,43485.0,43483.0,0.64]
[1641420719614,0.05835,43488.0,43487.0,0.00011]
[1641420719825,0.10415,43488.0,43487.0,0.00011]
[1641420720115,0.10415,43488.0,43480.0,0.19835181]
[1641420720116,0.05835,43486.0,43480.0,0.19835181]
[1641420720414,0.05835,43486.0,43480.0,0.19346181]
[1641420720616,0.32950465,43484.0,43480.0,0.19346181]
[1641420720915,0.474142,43483.0,43480.0,0.18802181]
[1641420721116,0.05824,43482.0,43480.0,0.18791181]
[1641420721319,0.469032,43481.0,43480.0,0.18791181]
[1641420721518,0.74,43480.0,43462.0,0.00278965]
[1641420721719,0.74,43480.0,43456.0,0.01971895]
[1641420721720,0.05324,43475.0,43456.0,0.01971895]
[1641420722032,0.05291,43467.0,43440.0,0.1]
[1641420722217,0.0528,43465.0,43437.0,0.29972756]
[1641420722443,0.57585783,43446.0,43442.0,0.249072]
[1641420722619,0.0237,43447.0,43442.0,0.07232772]
[1641420722817,0.10873,43446.0,43442.0,0.07232772]
[1641420723137,0.3105778,43437.0,43424.0,0.2041644]
[1641420723379,0.3105778,43437.0,43417.0,0.60059687]
[1641420723380,0.7750544,43436.0,43417.0,0.60059687]
[1641420723562,0.52832566,43423.0,43417.0,0.60059687]
[1641420723860,0.02082,43424.0,43417.0,0.60059687]
[1641420723861,0.00122044,43418.0,43417.0,0.60059687]
[1641420724060,0.01330913,43423.0,43417.0,0.59059687]
[1641420724362,0.00111664,43421.0,43403.0,0.08866653]
[1641420724663,0.62348189,43409.0,43393.0,0.2041644]
[1641420724863,0.1563947,43404.0,43392.0,0.45776723]
[1641420725172,0.04357069,43403.0,43392.0,0.45776723]
[1641420725359,0.370056,43402.0,43400.0,0.012]
[1641420725558,0.370056,43402.0,43392.0,0.25216668]
[1641420725559,0.2463544,43401.0,43392.0,0.25216668]
[1641420725763,0.369982,43400.0,43392.0,0.25216668]
[1641420725959,0.04219,43399.0,43392.0,0.25216668]
[1641420726162,0.01399,43401.0,43392.0,0.24716668]
[1641420726361,0.42989,43397.0,43392.0,0.00020698]
[1641420726561,0.42989,43397.0,43391.0,0.02965749]
[1641420726564,0.00125447,43394.0,43391.0,0.02965749]
[1641420726764,0.00125447,43394.0,43377.0,0.04102444]
[1641420726765,1.597546,43392.0,43370.0,0.0213738]
[1641420726967,1.597546,43392.0,43338.0,0.0985755]
[1641420726968,0.14587955,43347.0,43338.0,0.0985755]
[1641420727217,2.7546634,43391.0,43346.0,0.35]
[1641420727218,0.05613,43349.0,43346.0,0.35]
[1641420727418,0.09999999,43354.0,43348.0,0.0065]
[1641420727615,0.09977999,43352.0,43333.0,0.95419368]
[1641420727819,0.02131,43355.0,43339.0,0.00126974]
[1641420727820,0.01495,43350.0,43339.0,0.00126974]
[1641420728114,0.01484,43354.0,43340.0,0.370119]
[1641420728315,0.01484,43354.0,43333.0,0.90042095]
[1641420728316,0.02131,43355.0,43334.0,0.2041644]
[1641420728517,0.02131,43355.0,43322.0,0.7893]
[1641420728518,0.64572804,43325.0,43322.0,0.7893]
[1641420728717,0.22037326,43325.0,43311.0,2.88512971]
[1641420728915,0.2165944,43324.0,43311.0,2.73022971]
[1641420729119,0.52859,43322.0,43311.0,2.41177353]
[1641420729313,0.01531,43326.0,43311.0,2.26497353]
[1641420729514,0.05,43331.0,43311.0,1.36487553]
[1641420729515,1.015,43331.0,43311.0,1.36487553]
[1641420729717,1.015,43331.0,43313.0,2.19017225]
[1641420729718,0.04496898,43323.0,43313.0,2.19017225]
[1641420729913,0.4139202,43343.0,43313.0,2.19017225]
[1641420730115,0.3,43346.0,43343.0,0.6289259]
[1641420730318,2.19,43328.0,43298.0,0.17164506]
[1641420730522,2.19,43328.0,43291.0,0.50112763]
[1641420730523,0.15,43299.0,43291.0,0.50112763]
[1641420730715,0.01891,43321.0,43289.0,0.00389932]
[1641420730717,0.286507,43298.0,43289.0,0.00389932]
[1641420730974,0.286507,43298.0,43281.0,0.01932126]
[1641420730975,0.15,43314.0,43285.0,0.00011]
[1641420731272,0.00129434,43293.0,43285.0,0.0939]
[1641420731463,0.0423,43301.0,43300.0,0.33504352]
[1641420731662,0.15,43301.0,43300.0,0.5056698]
[1641420731866,0.15000253,43301.0,43300.0,0.370582]
[1641420732067,0.28471,43300.0,43284.0,0.10580454]
[1641420732265,0.14989322,43303.0,43287.0,0.00011]
[1641420732465,0.00116711,43318.0,43287.0,0.00011]
[1641420732466,4.62e-06,43288.0,43287.0,0.00011]
[1641420732663,0.56989322,43307.0,43287.0,0.370582]
[1641420732863,0.06717376,43306.0,43288.0,0.370582]
[1641420733084,0.173313,43326.0,43288.0,0.5567464]
[1641420733271,0.05375297,43328.0,43303.0,0.03282623]
[1641420733470,0.13654159,43329.0,43312.0,0.03282623]
[1641420733471,0.9662496,43329.0,43312.0,0.03282623]
[1641420733668,0.9662496,43329.0,43319.0,0.29473664]
[1641420733864,0.9662496,43329.0,43307.0,0.01386]
[1641420733865,0.302734,43328.0,43308.0,0.03282623]
[1641420734165,2.1,43327.0,43303.0,0.01908]
[1641420734365,2.1,43327.0,43323.0,0.15]
[1641420734366,0.19131729,43327.0,43323.0,0.15]
[1641420734616,0.9741396,43329.0,43323.0,0.21127]
[1641420734815,0.9741396,43329.0,43324.0,0.30416392]
[1641420735017,0.008,43329.0,43325.0,0.05]
[1641420735216,4.86e-06,43328.0,43326.0,0.37454857]
[1641420735417,0.2041644,43340.0,43327.0,0.15]
[1641420735624,0.2041644,43340.0,43274.0,0.00011]
[1641420735822,0.83162996,43341.0,43253.0,2.3800921]
[1641420735823,0.09978486,43329.0,43327.0,0.09079]
[1641420736019,2.4457332,43328.0,43325.0,0.01885]
[1641420736219,2.4457332,43328.0,43288.0,0.01641871]
[1641420736220,0.2936844,43327.0,43288.0,0.01641871]
[1641420736427,0.2936844,43327.0,43298.0,0.15]
[1641420736428,0.09978486,43305.0,43298.0,0.15]
[1641420736622,0.09926344,43301.0,43299.0,0.370365]
[1641420736822,0.09848239,43316.0,43299.0,0.370365]
[1641420737024,0.3470844,43327.0,43299.0,0.370365]
[1641420737025,0.3470844,43327.0,43299.0,0.36611238]
[1641420737026,0.09848239,43320.0,43299.0,0.36611238]
[1641420737222,0.2936844,43327.0,43303.0,5.90048395]
[1641420737223,8.66e-06,43314.0,43303.0,5.90048395]
[1641420737427,0.08952,43327.0,43303.0,5.90048395]
[1641420737428,0.08952,43327.0,43313.0,0.48625048]
[1641420737627,0.08952,43327.0,43314.0,0.5746504]
[1641420737821,0.0907633,43327.0,43320.0,0.02129]
[1641420738019,0.0053902,43334.0,43322.0,1.9]
[1641420738225,0.83162996,43339.0,43336.0,0.05835]
[1641420738479,0.83162996,43339.0,43337.0,0.28475485]
[1641420738681,1.55,43338.0,43337.0,0.08144]
[1641420738879,0.13526,43327.0,43323.0,0.0423]
[1641420739078,0.00127027,43339.0,43323.0,0.0923]
[1641420739280,0.00127027,43339.0,43337.0,0.00037268]
[1641420739482,0.00129798,43343.0,43337.0,0.06380268]
[1641420739684,0.2041644,43351.0,43337.0,0.05590268]
[1641420739982,0.1,43347.0,43337.0,0.02590268]
[1641420740181,0.1,43347.0,43337.0,0.01190268]
[1641420740182,0.5694654,43346.0,43337.0,0.01190268]
[1641420740380,0.5694654,43346.0,43326.0,0.30291682]
[1641420740381,0.02343,43334.0,43326.0,0.30291682]
[1641420740585,0.2041644,43333.0,43331.0,0.00127166]
[1641420740788,0.470301,43332.0,43313.0,0.15]